lending/lending_fUSD_20251107
["ID","MTS","AMOUNT","RATE_DAILY","PERIOD"]
[393352295,1762507837463,-457.18065829,0.00017899,2]
[393352297,1762507837474,-358.09547853,0.000179,2]
[393352299,1762507837485,-1134.22,0.000179,2]
[393352301,1762507837496,-9359.88218844,0.000179,2]
[393352302,1762507837519,-774.89907393,0.000179,2]
[393352303,1762507837576,-10439.0325235,0.000179,2]
[393352304,1762507837748,-5507.53469996,0.000179,2]
[393352305,1762507837765,-536.1356,0.000179,2]
[393352310,1762507838816,525.37816671,0.00015,2]
[393352314,1762507839597,-1596.87293505,0.000179,2]
[393352315,1762507839652,-487.43339276,0.000179,2]
[393352316,1762507839766,-43148.80411134,0.000179,2]
[393352317,1762507839778,-739.90288259,0.000179,2]
[393352318,1762507839874,-24818.23743217,0.000179,2]
[393352319,1762507839884,-162.81931906,0.000179,2]
[393352320,1762507839894,-223.0,0.00017952,2]
[393352321,1762507839904,-500.0,0.00017973,2]
[393352322,1762507839914,-500.0,0.00017973,2]
[393352323,1762507839924,-500.0,0.00017973,2]
[393352324,1762507839934,-500.0,0.00017973,2]
[393352325,1762507839944,-500.0,0.00017973,2]
[393352326,1762507839954,-500.0,0.00017973,2]
[393352327,1762507839964,-504.28126932,0.00017973,2]
[393352328,1762507839974,-500.0,0.00017973,2]
[393352330,1762507839983,-500.0,0.00017973,2]
[393352331,1762507839997,-625.33684407,0.00017973,2]
[393352332,1762507840007,-403.4952759,0.00017999,2]
[393352333,1762507840016,-300.0,0.00017999,2]
[393352334,1762507840026,-300.0,0.00017999,2]
[393352335,1762507840036,-500.0,0.00017999,2]
[393352336,1762507840046,-500.0,0.00017999,2]
[393352337,1762507840055,-500.0,0.00017999,2]
[393352338,1762507840066,-500.0,0.00017999,2]
[393352339,1762507840075,-500.0,0.00017999,2]
[393352340,1762507840085,-528.75,0.00017999,2]
[393352341,1762507840095,-6764256.10589754,0.00018,2]
[393352383,1762507842856,-807.72847044,0.00018,2]
[393352386,1762507842870,-594.27179784,0.00018,2]
[393352388,1762507842881,-370.47000018,0.00018,2]
[393352392,1762507842911,-35911.42993503,0.00018,2]
[393352457,1762507844829,200.0,0.0003,120]
[393352466,1762507845675,-1015.58993216,0.00018,2]
[393352467,1762507845686,-563.16242,0.00018,2]
[393352468,1762507845697,-951.03991463,0.00018,2]
[393352469,1762507845728,-15340.05102441,0.00018,2]
[393352470,1762507845739,-1765.808058,0.00018,2]
[393352471,1762507845754,-166967.2856565,0.00018,2]
[393352472,1762507845784,-956.86498928,0.00018,2]
[393352473,1762507845999,-3759.80276718,0.00018,2]
[393352474,1762507846053,-1372.36859883,0.00018,2]
[393352475,1762507877177,1200.0,0.0003,120]
[393352476,1762507931575,277.35679052,0.00038733,30]
[393352477,1762507978535,546.07955505,0.00038759,30]
[393352480,1762508268769,170.81,8.927e-05,2]
[393352488,1762508465467,14000.0,0.00038706,30]
[393352492,1762508675036,181.67,0.00013475,2]
[393352500,1762509018048,1458.33,0.00038707,120]
[393352501,1762509018369,1458.33,0.00038707,120]
[393352502,1762509018659,1458.33,0.00038707,120]
[393352503,1762509018900,1458.33,0.00038707,120]
[393352504,1762509019185,1458.33,0.00038707,120]
[393352505,1762509019440,1458.33,0.00038707,120]
[393352506,1762509019684,1458.33,0.00038707,120]
[393352507,1762509019924,1458.33,0.00038707,120]
[393352508,1762509020245,1458.33,0.00038707,120]
[393352509,1762509020505,1458.33,0.00038707,120]
[393352510,1762509020764,1458.33,0.00038707,120]
[393352511,1762509020996,1458.33,0.00038707,120]
[393352512,1762509021229,1458.33,0.00038707,120]
[393352513,1762509021501,1458.33,0.00038707,120]
[393352514,1762509021756,1458.33,0.00038707,120]
[393352515,1762509021989,1458.33,0.00038707,120]
[393352516,1762509022258,1458.33,0.00038707,120]
[393352517,1762509022501,1458.33,0.00038707,120]
[393352518,1762509022735,1458.33,0.00038707,120]
[393352519,1762509022973,1458.33,0.00038707,120]
[393352520,1762509023209,1458.33,0.00038707,120]
[393352521,1762509023491,1458.33,0.00038707,120]
[393352522,1762509023732,1458.33,0.00038707,120]
[393352523,1762509023997,1458.41,0.00038707,120]
[393352527,1762509031659,-200.0,0.00016679,2]
[393352529,1762509031668,-500.0,0.000168,2]
[393352531,1762509031678,-200.0,0.00016802,2]
[393352533,1762509031687,-500.0,0.000169,2]
[393352536,1762509031697,-80.499992,0.00016901,2]
[393352539,1762509031708,-318.10448703,0.00016901,2]
[393352541,1762509031720,-864.08449454,0.00016901,2]
[393352543,1762509031731,-1237.31102643,0.00016901,2]
[393352545,1762509031741,-195.0,0.00016903,2]
[393352547,1762509031750,-195.0,0.00016955,2]
[393352549,1762509031760,-2326.0,0.00016986,2]
[393352550,1762509031770,-481.33827656,0.00017,2]
[393352560,1762509031873,-518.66172344,0.00017,2]
[393352562,1762509031883,-1200.0,0.00017046,2]
[393352564,1762509031892,-975.91032954,0.00017047,2]
[393352565,1762509031904,-224.08967046,0.00017047,2]
[393352566,1762509031913,-194.15886146,0.00017047,2]
[393352567,1762509031928,-355.84113854,0.00017047,2]
[393352568,1762509031938,-276.32626822,0.00017047,2]
[393352569,1762509031949,-23.67373178,0.00017047,2]
[393352570,1762509031958,-300.0,0.00017047,2]
[393352571,1762509031968,-151.0,0.00017048,2]
[393352572,1762509031978,-151.0,0.00017048,2]
[393352573,1762509031987,-151.0,0.00017048,2]
[393352574,1762509031997,-151.0,0.00017048,2]
[393352575,1762509032008,-151.0,0.00017048,2]
[393352576,1762509032017,-151.0,0.00017048,2]
[393352577,1762509032027,-151.0,0.00017048,2]
[393352578,1762509032042,-151.0,0.00017048,2]
[393352579,1762509032051,-151.0,0.00017048,2]
[393352580,1762509032061,-151.0,0.00017048,2]
[393352581,1762509032071,-151.0,0.00017048,2]
[393352582,1762509032080,-151.0,0.00017048,2]
[393352583,1762509032091,-151.0,0.00017048,2]
[393352584,1762509032109,-151.0,0.00017048,2]
[393352585,1762509032119,-151.0,0.00017048,2]
[393352586,1762509032129,-151.0,0.00017048,2]
[393352587,1762509032140,-151.0,0.00017048,2]
[393352589,1762509032151,-151.0,0.00017048,2]
[393352591,1762509032161,-151.0,0.00017048,2]
[393352593,1762509032171,-151.0,0.00017048,2]
[393352595,1762509032180,-151.0,0.00017048,2]
[393352597,1762509032191,-151.0,0.00017048,2]
[393352599,1762509032200,-151.0,0.00017048,2]
[393352601,1762509032210,-151.0,0.00017048,2]
[393352603,1762509032220,-151.0,0.00017048,2]
[393352605,1762509032235,-151.0,0.00017048,2]
[393352607,1762509032245,-151.0,0.00017048,2]
[393352609,1762509032255,-151.0,0.00017048,2]
[393352611,1762509032266,-151.0,0.00017048,2]
[393352613,1762509032276,-151.0,0.00017048,2]
[393352616,1762509032286,-151.0,0.00017048,2]
[393352617,1762509032297,-151.0,0.00017048,2]
[393352618,1762509032307,-151.0,0.00017048,2]
[393352619,1762509032318,-151.0,0.00017048,2]
[393352620,1762509032328,-151.0,0.00017048,2]
[393352621,1762509032339,-151.0,0.00017048,2]
[393352622,1762509032349,-208.7547261,0.00017048,2]
[393352623,1762509032359,-500.0,0.00017057,2]
[393352624,1762509032369,-242.57154212,0.00017057,2]
[393352625,1762509032382,-257.42845788,0.00017057,2]
[393352626,1762509032392,-500.0,0.00017057,2]
[393352627,1762509032402,-438.55434667,0.00017057,2]
[393352628,1762509032414,-61.44565333,0.00017057,2]
[393352629,1762509032424,-460.60225656,0.00017057,2]
[393352630,1762509032436,-39.39774344,0.00017057,2]
[393352631,1762509032446,-500.0,0.00017057,2]
[393352632,1762509032456,-500.0,0.00017057,2]
[393352633,1762509032467,-236.68574069,0.00017057,2]
[393352634,1762509032478,-500.0,0.00017057,2]
[393352635,1762509032489,-531.34038251,0.00017057,2]
[393352636,1762509032502,-401.88668475,0.00017057,2]
[393352637,1762509032512,-500.0,0.00017057,2]
[393352638,1762509032524,-500.0,0.00017057,2]
[393352639,1762509032534,-500.0,0.00017057,2]
[393352640,1762509032546,-52109.22,0.00017058,2]
[393352641,1762509032556,-250.0,0.00017324,2]
[393352642,1762509032566,-150.0,0.00017386,2]
[393352643,1762509032576,-170.81,0.00017504,2]
[393352644,1762509032587,-2000.0,0.00017504,2]
[393352645,1762509032597,-1062.58,0.00017591,2]
[393352646,1762509032608,-879.62478709,0.00017604,2]
[393352647,1762509032618,-1450.12,0.00017631,2]
[393352648,1762509032628,-500.0,0.00017671,2]
[393352649,1762509032639,-214.6736035,0.00017718,2]
[393352650,1762509032650,-1984.76610677,0.00017898,2]
[393352651,1762509032661,-156.3926553,0.00017898,2]
[393352652,1762509032671,-13304.19625937,0.00017898,2]
[393352653,1762509032681,-338.0355972,0.00017898,2]
[393352654,1762509032691,-5968.9818,0.00017898,2]
[393352655,1762509032702,-234.3744,0.00017898,2]
[393352656,1762509032712,-5105.8959,0.00017898,2]
[393352657,1762509032724,-33266.2593,0.000179,2]
[393352658,1762509032734,-260.11334699,0.0001795,2]
[393352659,1762509032745,-500.0,0.00017973,2]
[393352660,1762509032755,-501.0816036,0.00017973,2]
[393352661,1762509032765,-500.0,0.00017973,2]
[393352662,1762509032775,-500.0,0.00017973,2]
[393352663,1762509032785,-500.0,0.00017973,2]
[393352664,1762509032796,-500.0,0.00017973,2]
[393352665,1762509032806,-500.0,0.00017973,2]
[393352666,1762509032816,-500.0,0.00017973,2]
[393352667,1762509032830,-500.0,0.00017973,2]
[393352668,1762509032841,-500.81946819,0.00017973,2]
[393352669,1762509032851,-500.0,0.00017973,2]
[393352670,1762509032861,-500.0,0.00017973,2]
[393352671,1762509032872,-500.0,0.00017973,2]
[393352672,1762509032882,-500.0,0.00017973,2]
[393352673,1762509032892,-500.0,0.00017973,2]
[393352674,1762509032902,-500.0,0.00017973,2]
[393352675,1762509032912,-500.0,0.00017973,2]
[393352676,1762509032922,-500.0,0.00017973,2]
[393352677,1762509032932,-182.26,0.00017989,2]
[393352678,1762509032942,-173.10787201,0.00017997,2]
[393352679,1762509032953,-320.0264608,0.00017997,2]
[393352680,1762509032964,-500.0,0.00017997,2]
[393352681,1762509032974,-500.0,0.00017997,2]
[393352682,1762509032984,-500.0,0.00017997,2]
[393352683,1762509032995,-513.33825688,0.00017997,2]
[393352684,1762509033005,-500.0,0.00017997,2]
[393352685,1762509033016,-500.0,0.00017997,2]
[393352686,1762509033026,-500.0,0.00017997,2]
[393352687,1762509033037,-500.0,0.00017997,2]
[393352688,1762509033047,-500.0,0.00017997,2]
[393352689,1762509033057,-505.04241582,0.00017997,2]
[393352690,1762509033071,-151.0,0.00017997,2]
[393352691,1762509033082,-17131.48628948,0.00017998,2]
[393352692,1762509033099,-9780.32191822,0.00017998,2]
[393352693,1762509033109,-8668.4795234,0.00017998,2]
[393352694,1762509033119,-163.8276898,0.00017998,2]
[393352695,1762509033129,-9466.7219149,0.00017998,2]
[393352696,1762509033144,-72295.81468975,0.00017998,2]
[393352697,1762509033155,-85824.81599196,0.00017998,2]
[393352698,1762509033172,-35949.0030408,0.00017998,2]
[393352699,1762509033188,-2695.0935315,0.00017998,2]
[393352704,1762509037663,-1380.94,0.00017998,2]
[393352705,1762509037674,-2000.944859,0.00017998,2]
[393352706,1762509037707,-362.13078509,0.00017998,2]
[393352707,1762509037719,-478.37891291,0.00017998,2]
[393352708,1762509037763,-7361.91006019,0.00017998,2]
[393352709,1762509037773,-486.53230071,0.00017998,2]
[393352710,1762509037784,-10995.45614601,0.00017998,2]
[393352711,1762509037817,-1476.42,0.00017998,2]
[393352712,1762509037829,-614.47246807,0.00017998,2]
[393352715,1762509037945,-4141.776292,0.00017998,2]
[393352717,1762509037956,-1191.612,0.00017998,2]
[393352718,1762509037967,-619.3089963,0.00017998,2]
[393352719,1762509037977,-7477.4,0.00017998,2]
[393352720,1762509037988,-4836.73334981,0.00017998,2]
[393352721,1762509037999,-351.88118535,0.00017998,2]
[393352723,1762509039971,-528.3672328,0.00017057,2]
[393352724,1762509039981,-195.93456784,0.00017997,2]
[393352725,1762509039991,-50092.80369036,0.00017998,2]
[393352726,1762509040023,-273.83794987,0.00017998,2]
[393352736,1762509042861,-19233.89814512,0.00017998,2]
[393352737,1762509042871,-31558.78817046,0.00017998,2]
[393352738,1762509043037,-424.646,0.00017998,2]
[393352746,1762509046179,-908.46000006,0.00017998,2]
[393352747,1762509046545,-1170.70042233,0.00017998,2]
[393352748,1762509046557,-274.57499921,0.00017998,2]
[393352749,1762509046598,-33383.79885494,0.00017998,2]
[393352750,1762509046607,-4248.17276886,0.00017999,2]
[393352751,1762509046616,-631.36940064,0.00017999,2]
[393352752,1762509046626,-500.0,0.00017999,2]
[393352753,1762509046635,-500.0,0.00017999,2]
[393352754,1762509046644,-525.82294279,0.00017999,2]
[393352755,1762509046653,-500.0,0.00017999,2]
[393352757,1762509046662,-500.0,0.00017999,2]
[393352759,1762509046671,-500.0,0.00017999,2]
[393352761,1762509046681,-437.07502368,0.00017999,2]
[393352763,1762509046690,-288238.56529039,0.00018,2]
[393353142,1762509125075,500.0,0.00038707,30]
[393353143,1762509125669,500.0,0.00038707,30]
[393353144,1762509126288,500.0,0.00038707,30]
[393353145,1762509126984,500.0,0.00038707,30]
[393353146,1762509127627,500.0,0.00038707,30]
[393353147,1762509128058,535.32668307,0.00038707,30]
[393353148,1762509128924,500.0,0.00038707,30]
[393353149,1762509129371,500.0,0.00038707,30]
[393353150,1762509129904,151.0,0.00038707,30]
[393353151,1762509130007,500.0,0.00038707,30]
[393353152,1762509130507,250.0,0.00038707,30]
[393353153,1762509130625,500.0,0.00038707,30]
[393353154,1762509131140,250.0,0.00038707,30]
[393353155,1762509131413,500.0,0.00038707,30]
[393353156,1762509131768,250.0,0.00038707,30]
[393353157,1762509132053,500.0,0.00038707,30]
[393353158,1762509132429,250.0,0.00038707,30]
[393353159,1762509133034,250.0,0.00038707,30]
[393353160,1762509133339,322.6107,0.00038707,30]
[393353161,1762509133645,250.0,0.00038707,30]
[393353162,1762509134275,250.0,0.00038707,30]
[393353163,1762509134892,250.0,0.00038707,30]
[393353164,1762509135489,250.0,0.00038707,30]
[393353165,1762509217227,299.99,0.00017998,4]
[393353166,1762509375632,500.0,0.00038707,120]
[393353167,1762509376015,500.0,0.00038707,120]
[393353168,1762509376266,500.0,0.00038707,120]
[393353169,1762509376495,500.0,0.00038707,120]
[393353170,1762509376728,500.0,0.00038707,120]
[393353171,1762509376973,500.0,0.00038707,120]
[393353172,1762509377257,223.91003142,0.00038707,120]
[393353173,1762509532301,609.04,0.00038707,120]
[393353177,1762509806448,957.38772788,0.00038705,120]
[393353178,1762509954543,947.18,0.00038705,30]
[393353221,1762510231875,-576.88174643,0.00016381,2]
[393353227,1762510231982,-396.09815507,0.00016381,2]
[393353230,1762510231993,-475.11538885,0.00016381,2]
[393353232,1762510232003,-250.0,0.00016431,2]
[393353234,1762510232012,-158.85,0.00016481,2]
[393353236,1762510232021,-1066.04,0.00016758,2]
[393353238,1762510232031,-2751.0,0.00016863,2]
[393353240,1762510232040,-250.0,0.00017,2]
[393353242,1762510232049,-158.85,0.00017059,2]
[393353244,1762510232059,-150.0,0.00017436,2]
[393353246,1762510232069,-1200.0,0.00017535,2]
[393353248,1762510232078,-1200.0,0.00017536,2]
[393353250,1762510232088,-300.0,0.00017536,2]
[393353251,1762510232097,-300.0,0.00017536,2]
[393353252,1762510232106,-12164.93484752,0.00017537,2]
[393353253,1762510232118,-550.0,0.00017563,2]
[393353254,1762510232127,-500.0,0.00017563,2]
[393353255,1762510232137,-548.47650084,0.00017563,2]
[393353256,1762510232146,-500.0,0.00017563,2]
[393353257,1762510232155,-500.0,0.00017563,2]
[393353258,1762510232165,-209.41421404,0.00017563,2]
[393353259,1762510232174,-167.98063864,0.00017566,2]
[393353263,1762510232214,-500.0,0.00017563,2]
[393353264,1762510232223,-30.77777805,0.00017566,2]
[393353268,1762510237831,-500.0,0.00017563,2]
[393353269,1762510237841,-500.0,0.00017563,2]
[393353271,1762510237850,-500.0,0.00017563,2]
[393353272,1762510237860,-500.0,0.00017563,2]
[393353274,1762510237869,-500.0,0.00017563,2]
[393353276,1762510237879,-500.0,0.00017563,2]
[393353277,1762510237889,-500.0,0.00017563,2]
[393353278,1762510237898,-500.0,0.00017563,2]
[393353279,1762510237908,-500.0,0.00017563,2]
[393353280,1762510237918,-500.0,0.00017563,2]
[393353281,1762510237927,-500.0,0.00017563,2]
[393353282,1762510237937,-71.22512726,0.00017563,2]
[393353283,1762510237990,-428.77487274,0.00017563,2]
[393353284,1762510238000,-500.0,0.00017563,2]
[393353285,1762510238011,-500.0,0.00017563,2]
[393353286,1762510238020,-500.0,0.00017563,2]
[393353287,1762510238030,-1762.39265566,0.00017566,2]
[393353288,1762510238045,-277.03607786,0.00017566,2]
[393353304,1762510239906,-2676.80535301,0.00017566,2]
[393353311,1762510239963,-505.85,0.00017566,2]
[393353324,1762510240067,-1967.77301504,0.00017566,2]
[393353337,1762510240175,-2611.37448174,0.00017566,2]
[393353339,1762510240185,-1452.37,0.00017566,2]
[393353341,1762510240194,-499.99,0.00017566,2]
[393353343,1762510240204,-1719.72,0.00017566,2]
[393353345,1762510240213,-3835.08053989,0.00017566,2]
[393353411,1762510242958,-6164.90946011,0.00017566,2]
[393353412,1762510242967,-55175.83,0.00017566,2]
[393353413,1762510242976,-214.84899531,0.00017573,2]
[393353414,1762510242985,-151.0,0.00017575,2]
[393353415,1762510242994,-40202.13,0.00017637,2]
[393353416,1762510243003,-1186.56,0.00017637,2]
[393353417,1762510243013,-1360.12,0.00017637,2]
[393353418,1762510243022,-4948.19187391,0.00017637,2]
[393353419,1762510243033,-5051.79812609,0.00017637,2]
[393353420,1762510243043,-158.85,0.00017637,2]
[393353421,1762510243054,-893.85465609,0.00017745,2]
[393353422,1762510243250,-221.84453216,0.00017746,2]
[393353423,1762510243260,-440.48,0.00017759,2]
[393353424,1762510243269,-361.17272004,0.00017778,2]
[393353425,1762510243279,-172.67681041,0.00017778,2]
[393353426,1762510243288,-1852.42,0.00017779,2]
[393353427,1762510243298,-3577.32,0.00017779,2]
[393353428,1762510243307,-150.99,0.00017779,2]
[393353429,1762510243316,-999.99,0.00017779,2]
[393353430,1762510243325,-6443.3,0.00017779,2]
[393353431,1762510243334,-9999.99,0.00017779,2]
[393353432,1762510243343,-1280.65,0.00017779,2]
[393353433,1762510243353,-150.99,0.00017779,2]
[393353434,1762510243363,-3643.29,0.00017779,2]
[393353435,1762510243372,-8302.67,0.00017779,2]
[393353436,1762510243381,-1590.05,0.00017779,2]
[393353437,1762510243390,-3848.471,0.00017873,2]
[393353438,1762510243399,-234.3744,0.00017873,2]
[393353439,1762510243409,-279.795,0.00017873,2]
[393353440,1762510243418,-3474.80462194,0.00017873,2]
[393353442,1762510243487,-309.56447236,0.00017873,2]
[393353443,1762510243508,-711.14227818,0.00017873,2]
[393353444,1762510246098,-1627.28430881,0.00017873,2]
[393353445,1762510246362,-445.41,0.00017873,2]
[393353446,1762510246413,-5755.75631871,0.00017873,2]
[393353447,1762510246422,-151.0,0.00017886,2]
[393353448,1762510246432,-151.0,0.00017886,2]
[393353449,1762510246441,-151.0,0.00017886,2]
[393353450,1762510246449,-151.0,0.00017886,2]
[393353451,1762510246459,-151.0,0.00017886,2]
[393353452,1762510246468,-151.0,0.00017886,2]
[393353454,1762510246477,-151.0,0.00017886,2]
[393353455,1762510246487,-151.0,0.00017886,2]
[393353456,1762510246495,-151.0,0.00017886,2]
[393353457,1762510246505,-151.0,0.00017886,2]
[393353458,1762510246514,-151.0,0.00017886,2]
[393353459,1762510246522,-151.0,0.00017886,2]
[393353460,1762510246532,-151.0,0.00017886,2]
[393353461,1762510246545,-151.0,0.00017886,2]
[393353462,1762510246554,-151.0,0.00017886,2]
[393353463,1762510246564,-151.0,0.00017886,2]
[393353464,1762510246573,-151.0,0.00017886,2]
[393353465,1762510246583,-151.0,0.00017886,2]
[393353466,1762510246592,-151.0,0.00017886,2]
[393353467,1762510246600,-151.0,0.00017886,2]
[393353468,1762510246610,-1370.95688355,0.00017896,2]
[393353469,1762510246619,-7371.2255,0.00017897,2]
[393353470,1762510246628,-150.0,0.00017897,2]
[393353471,1762510246646,-150.0,0.00017897,2]
[393353472,1762510246657,-150.0,0.00017897,2]
[393353473,1762510246667,-500.0,0.00017897,2]
[393353474,1762510246677,-685.0,0.00017897,2]
[393353475,1762510246688,-150.0,0.00017897,2]
[393353476,1762510246698,-150.0,0.00017897,2]
[393353477,1762510246707,-500.0,0.00017897,2]
[393353478,1762510246717,-552.0,0.00017897,2]
[393353479,1762510246727,-500.0,0.00017897,2]
[393353480,1762510246736,-351.03675743,0.00017898,2]
[393353481,1762510246746,-1786.28949612,0.00017898,2]
[393353482,1762510246756,-33266.2593,0.00017898,2]
[393353483,1762510246766,-4529.81439,0.0001791,2]
[393353484,1762510246775,-500.0,0.00017973,2]
[393353485,1762510246785,-500.0,0.00017973,2]
[393353486,1762510246794,-500.0,0.00017973,2]
[393353487,1762510246803,-500.0,0.00017973,2]
[393353488,1762510246812,-324.9487087,0.00017973,2]
[393353489,1762510246821,-500.0,0.00017973,2]
[393353490,1762510246831,-505.63349764,0.00017973,2]
[393353491,1762510246840,-200.20712979,0.00017973,2]
[393353492,1762510246849,-426.80169483,0.00017973,2]
[393353493,1762510246859,-502.06961086,0.00017973,2]
[393353494,1762510246868,-500.0,0.00017973,2]
[393353495,1762510246877,-500.64822633,0.00017973,2]
[393353496,1762510246888,-500.0,0.00017973,2]
[393353497,1762510246897,-500.0,0.00017973,2]
[393353498,1762510246906,-500.0,0.00017973,2]
[393353499,1762510246915,-500.0,0.00017973,2]
[393353500,1762510246924,-500.0,0.00017973,2]
[393353501,1762510246934,-500.0,0.00017973,2]
[393353502,1762510246944,-607.54870183,0.00017973,2]
[393353503,1762510246953,-295.47901701,0.00017973,2]
[393353504,1762510246964,-500.0,0.00017973,2]
[393353505,1762510246973,-500.0,0.00017973,2]
[393353506,1762510246985,-500.0,0.00017973,2]
[393353507,1762510246994,-274.48747551,0.00017973,2]
[393353508,1762510247003,-150.0,0.00017973,2]
[393353509,1762510247012,-150.0,0.00017973,2]
[393353510,1762510247022,-150.0,0.00017973,2]
[393353511,1762510247034,-153.84516862,0.00017973,2]
[393353512,1762510247043,-150.0,0.00017973,2]
[393353513,1762510247055,-150.0,0.00017973,2]
[393353514,1762510247064,-203.86759785,0.00017973,2]
[393353515,1762510247074,-500.0,0.00017973,2]
[393353516,1762510247083,-500.0,0.00017973,2]
[393353517,1762510247093,-249.06,0.00017973,2]
[393353518,1762510247102,-163.36,0.00017988,2]
[393353519,1762510247112,-151.0,0.00017995,2]
[393353520,1762510247121,-500.0,0.00017997,2]
[393353521,1762510247130,-150.0,0.00017997,2]
[393353522,1762510247140,-500.0,0.00017997,2]
[393353523,1762510247149,-500.0,0.00017997,2]
[393353524,1762510247159,-500.0,0.00017997,2]
[393353525,1762510247168,-150.0,0.00017997,2]
[393353526,1762510247177,-150.0,0.00017997,2]
[393353527,1762510247186,-150.0,0.00017997,2]
[393353528,1762510247196,-500.0,0.00017997,2]
[393353529,1762510247206,-150.0,0.00017997,2]
[393353530,1762510247216,-150.0,0.00017997,2]
[393353531,1762510247225,-150.0,0.00017997,2]
[393353532,1762510247234,-500.0,0.00017997,2]
[393353533,1762510247244,-150.0,0.00017997,2]
[393353534,1762510247254,-500.0,0.00017997,2]
[393353535,1762510247263,-500.0,0.00017997,2]
[393353536,1762510247272,-150.0,0.00017997,2]
[393353537,1762510247281,-500.0,0.00017997,2]
[393353538,1762510247291,-206.79233266,0.00017997,2]
[393353539,1762510247300,-500.0,0.00017997,2]
[393353540,1762510247310,-154.7243316,0.00017997,2]
[393353541,1762510247319,-500.0,0.00017997,2]
[393353542,1762510247328,-500.0,0.00017997,2]
[393353543,1762510247338,-20809.09937925,0.00017998,2]
[393353544,1762510247351,-62253.64579655,0.00017998,2]
[393353545,1762510247360,-20183.8561558,0.00017998,2]
[393353546,1762510247369,-163.8276898,0.00017998,2]
[393353547,1762510247379,-239705.9147322,0.00017998,2]
[393353548,1762510247389,-6336.09539715,0.00017998,2]
[393353549,1762510247401,-3693.56436029,0.00017998,2]
[393353550,1762510256122,150.0,0.00038705,120]
[393353551,1762510577800,999.0,0.00017087,3]
[393353552,1762510696637,500.0,0.00038708,30]
[393353553,1762510928466,165.98,8.645e-05,2]
[393353554,1762510928683,165.98,0.00010306,2]
[393353555,1762510928877,165.98,0.00011967,2]
[393353556,1762510929078,165.98,0.00013628,2]
[393353558,1762510953726,-165.98,0.00015289,2]
[393353559,1762510953747,-870.02,0.00016438,2]
[393353560,1762511163129,677.66,0.00013699,2]
[393353562,1762511218652,181.0,0.000164,14]
[393353563,1762511219448,183.40482863,0.000164,7]
[393353577,1762511312407,500.0,0.00014999,2]
[393353578,1762511312450,500.0,0.00014999,2]
[393353579,1762511312486,179.57776631,0.00014999,2]
[393353580,1762511312539,249.17626875,0.00014999,2]
[393353581,1762511312587,500.0,0.00014999,2]
[393353582,1762511312633,500.0,0.00014999,2]
[393353583,1762511312680,500.0,0.00014999,2]
[393353584,1762511312726,500.0,0.00014999,2]
[393353585,1762511312770,500.0,0.00014999,2]
[393353586,1762511312820,500.0,0.00014999,2]
[393353587,1762511312867,500.0,0.00014999,2]
[393353588,1762511312912,500.0,0.00014999,2]
[393353589,1762511312963,500.0,0.00014999,2]
[393353591,1762511349561,36954.0,0.0003871,30]
[393353592,1762511401538,1200.0,0.00014999,2]
[393353593,1762511401590,300.0,0.00014999,2]